Cogmind - Beta 16.1 @@@ ROGUE MODE // 2026.04.13 @ 01:13:27 Player: Clog Result: Destroyed by as-66607 with Assembled Heavy Rifle Performance ------------- Evolutions (0) 0 Regions Visited (4) 800 Robots Destroyed (19) 95 Value Destroyed (380) 380 Prototype IDs (1) 20 Alien Tech Used (0) 0 Bonus (0) 0 TOTAL SCORE: 1295 Bonus ------- None Cogmind --------- Core Integrity 0/250 Matter 159/300 Energy 64/100 System Corruption 4% Temperature Cool (0) Movement Flying (437) Ox5 Location -9/Mines Parts ------- > --- POWER (1) -------- (None) > --- PROPULSION (2) --- Flight Unit Flight Unit > --- UTILITY (2) ------ High-capacity Storage Unit Makeshift Terrain Scanner > --- WEAPON (2) ------- Light Assault Rifle > --- INVENTORY (20) --- Flight Unit Sensor Array ECM Suite Thief Drone Bay (3/3) Grenade Launcher Makeshift Sword Peak State ------------ > --- POWER ------------ Light Ion Engine > --- PROPULSION ------- Aluminum Leg > --- UTILITY ---------- High-capacity Storage Unit Makeshift Terrain Scanner > --- WEAPON ----------- Assault Rifle Makeshift Sword > --- INVENTORY -------- Flight Unit Flight Unit Flight Unit Sensor Array ECM Suite Thief Drone Bay Light Assault Rifle Grenade Launcher Mining Claw [Rating: 16] Favorites ----------- Power Light Ion Engine Engine Light Ion Engine Power Core Light Nuclear Core Propulsion Light Treads Treads Light Treads Leg Aluminum Leg Flight Unit Flight Unit Utility Small Storage Unit Device Makeshift Terrain Scanner Storage Small Storage Unit Weapon Light Assault Rifle Ballistic Gun Light Assault Rifle Launcher Grenade Launcher Slashing Weapon Makeshift Sword Special Melee Weapon Datajack Build | -11 -10 -10 -10 -9 ------- Run | Yrd Mat Min Exi Min Slots Evolved . | . . . . . Power . | . . . . . Propulsion . | . . . . . Utility . | . . . . . Weapon . | . . . . . Parts Attached 21 | 7 5 4 3 2 Power 3 | 1 2 . . . Engine 2 | 1 1 . . . Core 1 | . 1 . . . Reactor . | . . . . . Propulsion 5 | 2 . 1 . 2 Treads 2 | 2 . . . . Leg 1 | . . 1 . . Wheel . | . . . . . Hover . | . . . . . Flight 2 | . . . . 2 Utility 5 | 2 . 2 1 . Device 3 | 1 . 1 1 . Storage 2 | 1 . 1 . . Processor . | . . . . . Hackware . | . . . . . Protection . | . . . . . Artifact . | . . . . . Weapon 8 | 2 3 1 2 . Energy Gun . | . . . . . Energy Cannon . | . . . . . Ballistic Gun 4 | 2 1 1 . . Ballistic Cannon . | . . . . . Launcher 1 | . 1 . . . Special Weapon . | . . . . . Impact Weapon . | . . . . . Slashing Weapon 2 | . . . 2 . Piercing Weapon . | . . . . . Special Melee Weapon 1 | . 1 . . . Unidentified Prototypes 1 | . . 1 . . Parts Lost 8 | . 5 . . 3 Power 3 | . 2 . . 1 Propulsion 3 | . 2 . . 1 Utility 1 | . 1 . . . Weapon 1 | . . . . 1 Highest Loss Streak 4 | . 4 . . 3 To Critical Strikes . | . . . . . Average Backups 5 | . 5 7 8 9 Power . | . . . . . Propulsion 1 | . . . 3 3 Utility 2 | . 2 3 3 3 Weapon 1 | . 2 2 2 3 Tool/Special . | . . . . . Unused Backups 4 | . . 1 . 3 Power 1 | . . 1 . . Propulsion 1 | . . . . 1 Utility 2 | . . . . 2 Weapon . | . . . . . Tool/Special . | . . . . . Average Slot Usage (%) 76 | . 82 69 76 69 Engine 12 | . 9 14 14 8 Treads 4 | . 18 . . . Leg 10 | . . 12 14 9 Device 6 | . 9 . 5 14 Storage 14 | . 14 14 14 14 Ballistic Gun 27 | . 26 28 27 23 Peak Build Rating 16 | 9 9 12 16 13 Average Rating 7 | 6 7 5 8 11 On Entrance 6 | . 9 4 6 13 Avg Prop Armor Cover (%) . | . . . . . Naked Turns . | . . . . . Heaviest Build 48 | 13 15 46 48 47 Greatest Support 40 | 40 40 10 10 10 Greatest Overweight (x) 13 | . 4 4 4 13 Average Overweight (x) 1 | . . 1 4 6 Largest Inventory Capacity 20 | 8 8 20 20 20 Average Capacity 13 | 7 8 11 20 20 Most Carried 10 | 5 8 8 10 9 Average Carried 5 | . 5 7 8 8 Final Capacity 20 | 8 8 20 20 20 Final Carried 9 | . 6 8 9 6 Class Distribution -------------------- 100% | Mutant Dominant Class ---------------- Mutant | -10/Materials Mutant | -10/Mines Mutant | -10/Exiles Mutant | -9/Mines Resources | -11 -10 -10 -10 -9 ----------- Run | Yrd Mat Min Exi Min Matter Collected 549 | 270 185 84 . 10 Remotely . | . . . . . Salvage Created 478 | 22 392 43 11 10 Parts 41 | 2 33 6 . . Haulers Intercepted . | . . . . . Recyclers Shooed . | . . . . . Parts Field Recycled . | . . . . . Retrieved Matter . | . . . . . Parts Self-Destructed . | . . . . . Prevented . | . . . . . Parts Restored . | . . . . . Kills | -11 -10 -10 -10 -9 ------- Run | Yrd Mat Min Exi Min Combat Hostiles Destroyed 17 | . 13 3 . 1 Guns 15 | . 11 3 . 1 AOE 2 | . 2 . . . Classes Destroyed 5 | 1 3 . . 1 Tunneler 1 | 1 . . . . Operator 2 | . 2 . . . Swarmer 9 | . 6 3 . . Grunt 7 | . 7 . . . Assembled 1 | . . . . 1 Best Kill Streak 3 | 1 3 2 . 1 Combat Bots Only 3 | . 3 2 . 1 Max Kills in Single Turn 2 | 1 2 1 . 1 Gunslinging . | . . . . . Exploded 2 | . 2 . . . Melee . | . . . . . Uniques/NPCs Destroyed . | . . . . . Combat | -11 -10 -10 -10 -9 -------- Run | Yrd Mat Min Exi Min Hostile Shots Fired 123 | . 100 13 . 10 Missed 39 | . 32 5 . 2 Hits 84 | . 68 8 . 8 Melee 5 | . . . . 5 Projectile 79 | . 68 8 . 3 Part Disruptions 1 | . . . . 1 Damage Taken 982 | . 757 53 . 172 Core 255 | . 201 . . 54 Absorbed by Shields . | . . . . . Core Remaining (%) 100 | 100 . . . . Volleys Fired 76 | 5 52 8 5 6 Largest 2 | 2 2 2 1 2 Hottest 40 | 40 40 40 30 40 Shots Fired 143 | 10 102 16 5 10 Gun 136 | 10 100 16 . 10 Cannon . | . . . . . Launcher 7 | . 2 . 5 . Special . | . . . . . Kinetic 136 | 10 100 16 . 10 Thermal . | . . . . . Explosive 7 | . 2 . 5 . Electromagnetic . | . . . . . Robot Hit Streak 12 | 3 12 4 . 4 Robot Miss Streak 5 | 1 5 3 . 2 Penetration Max . | . . . . . Secondary Targets 1 | . 1 . . . Max Gunslinging Chain 1 | . 1 . . . Shots Hit Robots 71 | 4 53 8 . 6 Core Hits 44 | 3 30 4 4 3 Critical Kills 1 | . 1 . . . Critical Parts Destroyed . | . . . . . Critical Strikes 1 | . 1 . . . Destroy 1 | . 1 . . . Melee Attacks 12 | . . . 12 . Impact . | . . . . . Slashing 12 | . . . 12 . Piercing . | . . . . . Sneak Attacks . | . . . . . Combat Hostiles . | . . . . . Follow-up Attacks . | . . . . . Damage Inflicted 846 | 31 556 87 112 60 Guns 631 | 31 453 87 . 60 Cannons . | . . . . . Explosions 212 | . 100 . 112 . Melee . | . . . . . Ramming 3 | . 3 . . . Kinetic 631 | 31 453 87 . 60 Thermal . | . . . . . Explosive 212 | . 100 . 112 . Electromagnetic . | . . . . . Impact . | . . . . . Slashing . | . . . . . Piercing . | . . . . . Highest Corruption 4 | . . . . 4 Average Corruption 3 | . . . . 3 Corruption Purged . | . . . . . Corruption Blocked . | . . . . . Effects 1 | . . . . 1 Message Errors 1 | . . . . 1 Overload Shots . | . . . . . Overflow Damage . | . . . . . Projectiles . | . . . . . Explosions . | . . . . . Melee . | . . . . . Knockbacks . | . . . . . Impact . | . . . . . Kinetic . | . . . . . Secondary . | . . . . . Self-Inflicted Damage 3 | . 3 . . . Shots 1 | . 1 . . . Rammed 1 | . 1 . . . Targets Rammed 1 | . 1 . . . Kicked . | . . . . . Crushed . | . . . . . Highest Temperature 28 | . 28 . 10 . Average Temperature 8 | . 8 . 7 . Received Heat Transfer 347 | . 327 . . 20 Siege Activations . | . . . . . Martial Activations . | . . . . . Shielding Activations . | . . . . . Robots Disrupted . | . . . . . Combat Hostiles . | . . . . . Robots Corrupted . | . . . . . Combat Hostiles . | . . . . . Parts Fried . | . . . . . Impact Corruptions . | . . . . . Robots Melted . | . . . . . Combat Hostiles . | . . . . . Parts Melted . | . . . . . Heat Transferred . | . . . . . Parts Sabotaged . | . . . . . Parts Stolen . | . . . . . Parts Stripped . | . . . . . Power Chain Reactions . | . . . . . Alert | -11 -10 -10 -10 -9 ------- Run | Yrd Mat Min Exi Min Maximum Alert Level . | . . . . . Low Security (%) 100 | 100 100 100 . 100 Level 1 . | . . . . . Level 2 . | . . . . . Level 3 . | . . . . . Level 4 . | . . . . . Level 5 . | . . . . . High Security . | . . . . . Max Security . | . . . . . Peak Influence 90 | 5 90 75 . . Initial . | . . . . . Average 8 | . 19 12 . . Influence Increases 456 | 5 366 85 . . Destroy 0b10 Robot/C 320 | . 260 60 . . Destroy 0b10 Robot/NC 15 | 5 10 . . . Destroy Leader 60 | . 50 10 . . Successful Hack 5 | . 5 . . . Destroy Structure 11 | . 11 . . . Lose Combat Pursuer 45 | . 30 15 . . Influence Decreases 456 | 5 366 85 . . Time Decay 374 | 5 284 85 . . Lost Part 10 | . 10 . . . Purge Threat 72 | . 72 . . . Squads Dispatched 4 | . 4 . . . Investigation 2 | . 2 . . . Extermination . | . . . . . Reinforcement 2 | . 2 . . . Assault . | . . . . . Garrison . | . . . . . Intercept . | . . . . . Searches Triggered . | . . . . . Construction Impeded . | . . . . . Haulers Reinforced . | . . . . . Active Scanning Responses . | . . . . . Cargo Convoy Interrupts . | . . . . . Stealth | -11 -10 -10 -10 -9 --------- Run | Yrd Mat Min Exi Min Distress Signals 1 | . 1 . . . Communications Jammed . | . . . . . Distress Signals . | . . . . . Times Spotted 31 | . 23 3 . 5 Peak Tracking Total 5 | . 5 3 . 4 Tactical Retreats 2 | . 1 1 . . Traps | -11 -10 -10 -10 -9 ------- Run | Yrd Mat Min Exi Min Traps Triggered 2 | . 2 . . . Indirectly . | . . . . . Trap Hack Attempts 9 | . 9 . . . Triggered . | . . . . . Disarmed 3 | . 3 . . . Reprogrammed . | . . . . . Reused . | . . . . . Traps Extracted . | . . . . . Installed . | . . . . . Triggered . | . . . . . Machines | -11 -10 -10 -10 -9 ---------- Run | Yrd Mat Min Exi Min Machines Disabled . | . . . . . Max in Single Turn . | . . . . . Machines Repaired . | . . . . . Machines Dismantled . | . . . . . Machines Sabotaged . | . . . . . Overloaded Fab Kills . | . . . . . Hacking | -11 -10 -10 -10 -9 --------- Run | Yrd Mat Min Exi Min Machines Accessed 11 | . 6 1 4 . Terminals 5 | . 5 . . . Fabricators . | . . . . . Repair Stations . | . . . . . Recycling Units 1 | . 1 . . . Scanalyzers . | . . . . . Garrison Access . | . . . . . Total Hacks 54 | . 16 1 37 . Successful 48 | . 10 1 37 . Failed 6 | . 6 . . . Catastrophic 1 | . 1 . . . Database Lockouts . | . . . . . Manual 13 | . 13 . . . Terminals 14 | . 14 . . . Fabricators . | . . . . . Repair Stations . | . . . . . Recycling Units 2 | . 2 . . . Scanalyzers . | . . . . . Garrison Access . | . . . . . Terminal Hacks 45 | . 7 1 37 . Record 37 | . . . 37 . Open Door 1 | . . 1 . . Terminal Index 1 | . 1 . . . Unreport Threat 2 | . 2 . . . Maintenance Status 1 | . 1 . . . Recall Investigation 1 | . 1 . . . Hauler Manifests 1 | . 1 . . . Zone Layout 1 | . 1 . . . Fabricator Hacks . | . . . . . Repair Station Hacks . | . . . . . Recycling Unit Hacks 2 | . 2 . . . Retrieve Matter 1 | . 1 . . . Retrieve Components 1 | . 1 . . . Scanalyzer . | . . . . . Garrison Access Hacks . | . . . . . Unauthorized Hacks 1 | . 1 . . . Terminals 1 | . 1 . . . Operators 1 | . 1 . . . Fabricators . | . . . . . Repair Stations . | . . . . . Recycling Units . | . . . . . Scanalyzers . | . . . . . Garrison Access . | . . . . . Data Cores Recovered . | . . . . . Used . | . . . . . Hacking Detections 6 | . 6 . . . Full Trace Events 1 | . 1 . . . Feedback Events . | . . . . . Feedback Blocked . | . . . . . Robot Schematics Acquired . | . . . . . Robots Built . | . . . . . Authchips . | . . . . . Time . | . . . . . Total Robot Build Rating . | . . . . . Part Schematics Acquired . | . . . . . Parts Built . | . . . . . Authchips . | . . . . . Time . | . . . . . Total Part Build Rating . | . . . . . Part Studies Acquired . | . . . . . Parts Repaired . | . . . . . Time . | . . . . . Parts Recycled . | . . . . . Recycled Matter . | . . . . . Retrieved Matter . | . . . . . Retrieved Components 2 | . 2 . . . Parts Scanalyzed . | . . . . . Part Schematics Acquired . | . . . . . Parts Damaged . | . . . . . Bothacking | -11 -10 -10 -10 -9 ------------ Run | Yrd Mat Min Exi Min Used RIF Installer . | . . . . . Robots Hacked . | . . . . . Non-combat . | . . . . . Combat . | . . . . . Robot Hacks Applied . | . . . . . Relay Couplers Released . | . . . . . Fabnet Peak Effective % . | . . . . . Robots Rewired . | . . . . . Allies Hacked . | . . . . . Hacks Repelled . | . . . . . Allies | -11 -10 -10 -10 -9 -------- Run | Yrd Mat Min Exi Min Total Allies . | . . . . . Largest Group . | . . . . . Highest-Rated Group . | . . . . . Highest-Rated Ally . | . . . . . Total Orders . | . . . . . Ally Attacks . | . . . . . Total Damage . | . . . . . Kills . | . . . . . Allies Corrupted . | . . . . . Allies Melted . | . . . . . Intel | -11 -10 -10 -10 -9 ------- Run | Yrd Mat Min Exi Min Active Infowar (turns) 2442 | 65 911 . 1297 169 Terrain 2442 | 65 911 . 1297 169 Robot Analysis Total . | . . . . . Derelict Logs Recovered . | . . . . . Drone Launches . | . . . . . Drone Recoveries . | . . . . . Exploration | -11 -10 -10 -10 -9 ------------- Run | Yrd Mat Min Exi Min Turns Passed 7464 | 1898 1419 579 3399 169 Spaces Moved 2782 | 980 686 245 839 32 Core 241 | 23 185 25 . 8 Treads 1458 | 957 501 . . . Legs 1083 | . . 220 839 24 Wheels . | . . . . . Hover . | . . . . . Flight . | . . . . . Fastest Speed 50 | 50 150 190 400 400 Average Speed 242 | 157 166 221 400 475 Slowest Speed 700 | 160 250 400 400 700 Overloaded Moves . | . . . . . Propulsion Burnouts . | . . . . . Robots Hopped . | . . . . . Potential Cave-ins 13 | . . . 13 . Cave-ins Triggered . | . . . . . Exploration Rate (%) 53 | 32 76 48 93 17 Regions Visited 4 Branch Regions 3 Pre-discovered Areas 1 | . . . 1 . Known Exits Taken . | . . . . . Unknown Exits Taken 4 | 1 1 1 1 . Scrap Searched . | . . . . . Spaces Dug 15 | . . . 15 . Terrain Destroyed 25 | . 10 . 15 . Melee 8 | . . . 8 . Projectile . | . . . . . AOE 17 | . 10 . 7 . Terrain Rammed . | . . . . . Walls Destroyed . | . . . . . Machines Disabled . | . . . . . Actions | -11 -10 -10 -10 -9 --------- Run | Yrd Mat Min Exi Min Total 3392 | 1327 886 270 868 41 Wait 447 | 330 114 3 . . Move 2778 | 979 685 244 838 32 Hop . | . . . . . Pick Up 25 | 6 9 8 2 . Fast Attach 1 | 1 . . . . Attach 27 | 6 9 4 6 2 Detach 12 | . 6 1 5 . Swap . | . . . . . Drop 4 | . 1 2 . 1 Fire 76 | 5 52 8 5 6 Melee 12 | . . . 12 . Ram . | . . . . . Kick . | . . . . . Crush 1 | . 1 . . . Escape Stasis . | . . . . . Rewire . | . . . . . Trap 9 | . 9 . . . Miscellaneous . | . . . . . Route ------- -11/Scrapyard -10/Materials (discovered 2 exits: *Min / [*Sub]) -10/Mines (discovered 2 exits: [*Mat] / *Exi) -10/Exiles (discovered 2 exits: [*Min x2]) -9/Mines History --------- Turn | Location | Event 9 | -11/Scrapyard | Discovered new exit (range 16) 1899 | -11/Scrapyard | Entered Materials 1900 | -10/Materials | Build established: Mutant 2208 | -10/Materials | Discovered new exit (range 15) 2721 | -10/Materials | Discovered new exit (range 10) 2828 | -10/Materials | Core integrity fell below 50% 2864 | -10/Materials | Lost 4 parts (1p2n1u) 3114 | -10/Materials | Core integrity fell below 20% 3318 | -10/Materials | Entered Mines 3404 | -10/Mines | Met a Derelict bent on vengeance 3441 | -10/Mines | Found the Drone Emporium 3450 | -10/Mines | Found Prototype Device 3459 | -10/Mines | Identified Thief Drone Bay 3713 | -10/Mines | Discovered new exit (range 9) 3877 | -10/Mines | Deemed a non-threat by the Exiles lab entrance 3881 | -10/Mines | Discovered new exit (range 5) 3897 | -10/Mines | Entered Exiles 3897 | -10/Exiles | Found Exiles lab destroyed 3993 | -10/Exiles | Discovered new exit (range 14) 4477 | -10/Exiles | Learned location of Zion (-7) 5421 | -10/Exiles | Discovered new exit (range 12) 7296 | -10/Exiles | Entered Mines 7297 | -9/Mines | Assembled infested the area 7302 | -9/Mines | Assisted by a Guerilla fighting off Assembled 7436 | -9/Mines | Lost 3 parts (1p1n1w) 7465 | -9/Mines | Destroyed by as-66607 with Assembled Heavy Rifle Last Messages --------------- dispatching Demolisher response squad. 07302_ A derelict emerges from the shadows: "You need to get out of here! I've been tracking a group of Assembled to figure out where they're coming from, and they're closing on this area, come on!" 07318_ T-07 Excavator is excavating. 07396_ Lgt. Ion Engine destroyed. 07396_ System corrupted by crushing effect (+1). 07402_ Assault Rifle destroyed. 07402_ System corrupted by crushing effect (+1). 07405_ Aluminum Leg destroyed. 07405_ System corrupted by crushing effect (+2). 07405_ as-45838 destroyed. 07407_ ZQP O6G7NS,UAG65OTHN&&F4 Q